[Event "*** Titled Tuesday Blitz"]
[Site "Chess.com"]
[Date "2021.03.09"]
[Round "7"]
[White "juancruzarias"]
[Black "schondeln"]
[Result "0-1"]
[WhiteElo "2547"]
[BlackElo "2409"]
[TimeControl "180+1"]
[EndTime "11:19:25 PST"]
[Termination "schondeln won by resignation"]

1. d4 {[%clk 0:03:00.9]} 1... d5 {[%clk 0:02:59.6]} 2. e4 {[%clk 0:03:01.8]}
2... dxe4 {[%clk 0:02:59.1]} 3. Nc3 {[%clk 0:02:57.4]} 3... e5 {[%clk
0:02:58.6]} 4. dxe5 {[%clk 0:02:48.4]} 4... Qxd1+ {[%clk 0:02:57.1]} 5. Nxd1
{[%clk 0:02:49.3]} 5... Nc6 {[%clk 0:02:56.1]} 6. Bb5 {[%clk 0:02:47.2]} 6...
Bd7 {[%clk 0:02:54.3]} 7. Bxc6 {[%clk 0:02:41.2]} 7... Bxc6 {[%clk 0:02:54.1]}
8. Bf4 {[%clk 0:02:41]} 8... O-O-O {[%clk 0:02:51.3]} 9. Ne2 {[%clk 0:02:39.7]}
9... Ne7 {[%clk 0:02:50.5]} 10. Ne3 {[%clk 0:02:33.1]} 10... Ng6 {[%clk
0:02:43.7]} 11. Bg3 {[%clk 0:02:20.3]} 11... Bc5 {[%clk 0:02:42.2]} 12. h4
{[%clk 0:02:10.4]} 12... Rhe8 {[%clk 0:02:40.7]} 13. h5 {[%clk 0:01:46.2]} 13...
Nxe5 {[%clk 0:02:39.6]} 14. h6 {[%clk 0:01:46.1]} 14... g6 {[%clk 0:02:37.5]}
15. Rd1 {[%clk 0:01:45.3]} 15... Rxd1+ {[%clk 0:02:23.3]} 16. Kxd1 {[%clk
0:01:46.2]} 16... Bxe3 {[%clk 0:02:19.8]} 17. fxe3 {[%clk 0:01:36.8]} 17... Nc4
{[%clk 0:02:19.7]} 18. Bf4 {[%clk 0:01:31]} 18... Nxb2+ {[%clk 0:02:19.6]} 19.
Kc1 {[%clk 0:01:30.9]} 19... Nc4 {[%clk 0:02:18.2]} 20. Nd4 {[%clk 0:01:29.8]}
20... Bd7 {[%clk 0:02:09.3]} 21. Rf1 {[%clk 0:01:21.9]} 21... f5 {[%clk
0:02:08.4]} 22. Rd1 {[%clk 0:01:18.8]} 22... c5 {[%clk 0:02:08.2]} 23. Ne2
{[%clk 0:01:17.6]} 23... b6 {[%clk 0:02:00.7]} 24. Ng1 {[%clk 0:01:16.2]} 24...
Be6 {[%clk 0:01:47.4]} 25. Nh3 {[%clk 0:01:03.2]} 25... Rd8 {[%clk 0:01:47.3]}
26. Rxd8+ {[%clk 0:01:00.2]} 26... Kxd8 {[%clk 0:01:47.2]} 27. Ng5 {[%clk
0:01:00.3]} 27... Bg8 {[%clk 0:01:47.3]} 28. c3 {[%clk 0:00:56.2]} 28... Kd7
{[%clk 0:01:47.4]} 29. Kc2 {[%clk 0:00:54.5]} 29... Kc6 {[%clk 0:01:47.6]} 30.
a4 {[%clk 0:00:53.3]} 30... a5 {[%clk 0:01:47.4]} 31. Bb8 {[%clk 0:00:50.8]}
31... Nxe3+ {[%clk 0:01:39.1]} 0-1

[Event "*** Titled Tuesday Blitz"]
[Site "Chess.com"]
[Date "2021.03.09"]
[Round "7"]
[White "vinniethepooh"]
[Black "BrandonJacobson"]
[Result "0-1"]
[WhiteElo "2717"]
[BlackElo "2926"]
[TimeControl "180+1"]
[EndTime "11:19:39 PST"]
[Termination "BrandonJacobson won by resignation"]

1. d4 {[%clk 0:03:00.9]} 1... Nf6 {[%clk 0:03:00]} 2. c4 {[%clk 0:03:01.3]} 2...
e6 {[%clk 0:03:00.5]} 3. Nc3 {[%clk 0:03:01.7]} 3... d5 {[%clk 0:03:01.1]} 4.
cxd5 {[%clk 0:03:01.9]} 4... exd5 {[%clk 0:03:02]} 5. Bg5 {[%clk 0:03:02.4]}
5... c6 {[%clk 0:03:02.8]} 6. e3 {[%clk 0:03:02.8]} 6... h6 {[%clk 0:03:03.4]}
7. Bh4 {[%clk 0:03:03]} 7... Be7 {[%clk 0:03:03.9]} 8. Bd3 {[%clk 0:03:03.5]}
8... O-O {[%clk 0:03:04.6]} 9. Nge2 {[%clk 0:03:03.9]} 9... Re8 {[%clk
0:03:05.2]} 10. O-O {[%clk 0:03:04.2]} 10... Ne4 {[%clk 0:03:05.5]} 11. Bxe7
{[%clk 0:03:04]} 11... Qxe7 {[%clk 0:03:06.4]} 12. Ng3 {[%clk 0:03:03.3]} 12...
Nxg3 {[%clk 0:03:02.7]} 13. hxg3 {[%clk 0:03:04.2]} 13... Nd7 {[%clk 0:03:03.1]}
14. Re1 {[%clk 0:02:59.9]} 14... Nf6 {[%clk 0:03:03.4]} 15. Qc2 {[%clk
0:02:59.7]} 15... Be6 {[%clk 0:03:03.4]} 16. Rab1 {[%clk 0:02:52.3]} 16... h5
{[%clk 0:02:43.4]} 17. b4 {[%clk 0:02:46.8]} 17... a6 {[%clk 0:02:43.4]} 18. a4
{[%clk 0:02:46.2]} 18... Rec8 {[%clk 0:02:38.7]} 19. Ne2 {[%clk 0:02:39.3]}
19... Bd7 {[%clk 0:02:29.5]} 20. Rec1 {[%clk 0:02:37.5]} 20... Ng4 {[%clk
0:02:21.5]} 21. Bf5 {[%clk 0:02:27]} 21... Qf6 {[%clk 0:02:18.7]} 22. Bxg4
{[%clk 0:02:16.5]} 22... hxg4 {[%clk 0:02:19.6]} 23. Nf4 {[%clk 0:01:34.7]}
23... g5 {[%clk 0:02:02.5]} 24. Nd3 {[%clk 0:01:34]} 24... Bf5 {[%clk 0:01:56]}
25. Kf1 {[%clk 0:01:34]} 25... Kg7 {[%clk 0:01:53.9]} 26. Ke2 {[%clk 0:01:33.6]}
26... Be4 {[%clk 0:01:52.5]} 27. Rg1 {[%clk 0:01:02.5]} 27... Rh8 {[%clk
0:01:51.2]} 28. b5 {[%clk 0:00:40.6]} 28... cxb5 {[%clk 0:01:46.2]} 29. axb5
{[%clk 0:00:41.5]} 29... a5 {[%clk 0:01:46.7]} 30. Qc7 {[%clk 0:00:37.7]} 30...
Rac8 {[%clk 0:01:38.8]} 0-1

[Event "*** Titled Tuesday Blitz"]
[Site "Chess.com"]
[Date "2021.03.09"]
[Round "7"]
[White "tylityli"]
[Black "mary-sanna"]
[Result "1-0"]
[WhiteElo "2242"]
[BlackElo "2059"]
[TimeControl "180+1"]
[EndTime "11:19:40 PST"]
[Termination "tylityli won by resignation"]

1. d4 {[%clk 0:03:00.9]} 1... d5 {[%clk 0:02:59.6]} 2. c4 {[%clk 0:03:00.3]}
2... e6 {[%clk 0:02:59.4]} 3. Nc3 {[%clk 0:02:59.6]} 3... c5 {[%clk 0:02:58.5]}
4. cxd5 {[%clk 0:02:58.9]} 4... exd5 {[%clk 0:02:59.4]} 5. Nf3 {[%clk
0:02:57.7]} 5... Nc6 {[%clk 0:02:59.2]} 6. g3 {[%clk 0:02:57.7]} 6... Nf6 {[%clk
0:02:57.6]} 7. Bg2 {[%clk 0:02:57.8]} 7... cxd4 {[%clk 0:02:57.8]} 8. Nxd4
{[%clk 0:02:56.7]} 8... Bc5 {[%clk 0:02:58]} 9. Nb3 {[%clk 0:02:56.1]} 9... Bb6
{[%clk 0:02:57.4]} 10. Nxd5 {[%clk 0:02:53.3]} 10... O-O {[%clk 0:02:44.6]} 11.
O-O {[%clk 0:02:45.4]} 11... Be6 {[%clk 0:02:28.2]} 12. e4 {[%clk 0:02:38.2]}
12... Bg4 {[%clk 0:02:16.9]} 13. Nxf6+ {[%clk 0:02:35.3]} 13... Qxf6 {[%clk
0:02:16.5]} 14. Qxg4 {[%clk 0:02:35.2]} 14... Nb4 {[%clk 0:02:07.9]} 15. Qf5
{[%clk 0:02:28]} 15... Qe7 {[%clk 0:01:58.7]} 16. Bg5 {[%clk 0:02:23.7]} 16...
f6 {[%clk 0:01:56.7]} 17. Bf4 {[%clk 0:02:22.3]} 17... g6 {[%clk 0:01:41.1]} 18.
Qb5 {[%clk 0:02:14.2]} 18... Kg7 {[%clk 0:01:23.8]} 19. a3 {[%clk 0:02:08.2]}
19... Nc2 {[%clk 0:01:14.6]} 20. Rac1 {[%clk 0:02:05]} 20... Rac8 {[%clk
0:01:12.3]} 21. e5 {[%clk 0:01:54.2]} 21... fxe5 {[%clk 0:01:10.1]} 22. Bxe5+
{[%clk 0:01:52.6]} 22... Kh6 {[%clk 0:01:01.3]} 23. Bf4+ {[%clk 0:01:45.6]}
23... Kg7 {[%clk 0:00:59.7]} 24. Qe5+ {[%clk 0:01:45.1]} 24... Qf6 {[%clk
0:00:46.8]} 25. Qxf6+ {[%clk 0:01:39.2]} 25... Rxf6 {[%clk 0:00:46.3]} 26. Bxb7
{[%clk 0:01:36.3]} 1-0

[Event "*** Titled Tuesday Blitz"]
[Site "Chess.com"]
[Date "2021.03.09"]
[Round "7"]
[White "BegmuratovKh2010"]
[Black "Kostukov_Alex"]
[Result "1-0"]
[WhiteElo "2540"]
[BlackElo "2313"]
[TimeControl "180+1"]
[EndTime "11:19:47 PST"]
[Termination "BegmuratovKh2010 won by checkmate"]

1. e4 {[%clk 0:03:00.9]} 1... c5 {[%clk 0:02:59.8]} 2. Nc3 {[%clk 0:03:01]} 2...
g6 {[%clk 0:02:59.9]} 3. d3 {[%clk 0:03:01]} 3... Bg7 {[%clk 0:03:00]} 4. g3
{[%clk 0:03:01.9]} 4... Nc6 {[%clk 0:03:00.1]} 5. Bg2 {[%clk 0:03:02]} 5... e5
{[%clk 0:03:00.3]} 6. f4 {[%clk 0:03:02.1]} 6... Nge7 {[%clk 0:02:50.8]} 7. Nf3
{[%clk 0:03:01.3]} 7... O-O {[%clk 0:02:50]} 8. O-O {[%clk 0:03:00.6]} 8... d6
{[%clk 0:02:41.1]} 9. Be3 {[%clk 0:02:59]} 9... Bg4 {[%clk 0:02:36.7]} 10. h3
{[%clk 0:02:56.5]} 10... Bxf3 {[%clk 0:02:36.7]} 11. Qxf3 {[%clk 0:02:57.4]}
11... Nd4 {[%clk 0:02:37.2]} 12. Qf2 {[%clk 0:02:57.4]} 12... f5 {[%clk
0:02:35.8]} 13. Qd2 {[%clk 0:02:53.5]} 13... Rb8 {[%clk 0:02:09.5]} 14. a4
{[%clk 0:02:50]} 14... Qa5 {[%clk 0:02:06]} 15. fxe5 {[%clk 0:02:36.7]} 15...
dxe5 {[%clk 0:01:58.5]} 16. Nd5 {[%clk 0:02:19.3]} 16... Qxd2 {[%clk 0:01:50.4]}
17. Nxe7+ {[%clk 0:02:17]} 17... Kf7 {[%clk 0:01:50.4]} 18. Bxd2 {[%clk
0:02:17.5]} 18... Kxe7 {[%clk 0:01:49.9]} 19. exf5 {[%clk 0:02:08.9]} 19... gxf5
{[%clk 0:01:36]} 20. Bg5+ {[%clk 0:02:05.3]} 20... Ke6 {[%clk 0:01:33.5]} 21. c3
{[%clk 0:01:56.1]} 21... Nb3 {[%clk 0:01:08.2]} 22. Rae1 {[%clk 0:01:48.3]}
22... b5 {[%clk 0:00:59.4]} 23. axb5 {[%clk 0:01:47]} 23... Rxb5 {[%clk
0:00:58]} 24. Bd5+ {[%clk 0:01:41.1]} 24... Kd6 {[%clk 0:00:49.2]} 25. Bc4
{[%clk 0:01:38.9]} 25... Rb7 {[%clk 0:00:36.8]} 26. Bxb3 {[%clk 0:01:35.1]}
26... Rxb3 {[%clk 0:00:36.2]} 27. Ra1 {[%clk 0:01:36]} 27... Rf7 {[%clk
0:00:32.6]} 28. Ra6+ {[%clk 0:01:34.4]} 28... Kd5 {[%clk 0:00:30.8]} 29. c4+
{[%clk 0:01:27.5]} 29... Kd4 {[%clk 0:00:30.7]} 30. Rd6# {[%clk 0:01:27.2]} 1-0

[Event "*** Titled Tuesday Blitz"]
[Site "Chess.com"]
[Date "2021.03.09"]
[Round "7"]
[White "lachesisQ"]
[Black "ChessWarrior7197"]
[Result "1-0"]
[WhiteElo "3093"]
[BlackElo "2924"]
[TimeControl "180+1"]
[EndTime "11:19:52 PST"]
[Termination "lachesisQ won by resignation"]

1. e4 {[%clk 0:03:00.9]} 1... c6 {[%clk 0:02:59.9]} 2. d4 {[%clk 0:02:57.4]}
2... d5 {[%clk 0:03:00.8]} 3. e5 {[%clk 0:02:58.1]} 3... Bf5 {[%clk 0:03:01]} 4.
Nf3 {[%clk 0:02:58.7]} 4... e6 {[%clk 0:03:01.5]} 5. Be2 {[%clk 0:02:59.4]} 5...
Ne7 {[%clk 0:02:59.8]} 6. O-O {[%clk 0:02:59.8]} 6... h6 {[%clk 0:03:00]} 7. c3
{[%clk 0:03:00]} 7... Nd7 {[%clk 0:02:59.5]} 8. Nbd2 {[%clk 0:03:00.5]} 8... Bh7
{[%clk 0:02:56.9]} 9. a4 {[%clk 0:02:58.2]} 9... Ng6 {[%clk 0:02:55.2]} 10. Nb3
{[%clk 0:02:56.1]} 10... Be7 {[%clk 0:02:55.2]} 11. Ne1 {[%clk 0:02:55.9]} 11...
O-O {[%clk 0:02:53.7]} 12. Nd3 {[%clk 0:02:56.1]} 12... b6 {[%clk 0:02:42.9]}
13. Be3 {[%clk 0:02:52.7]} 13... Qc7 {[%clk 0:02:42.5]} 14. g3 {[%clk
0:02:50.7]} 14... c5 {[%clk 0:02:42.3]} 15. Nd2 {[%clk 0:02:50.4]} 15... c4
{[%clk 0:02:39.5]} 16. Ne1 {[%clk 0:02:46.7]} 16... f6 {[%clk 0:02:36.2]} 17. f4
{[%clk 0:02:43.8]} 17... a6 {[%clk 0:02:16.6]} 18. Bf3 {[%clk 0:02:22.7]} 18...
f5 {[%clk 0:02:04.7]} 19. h4 {[%clk 0:02:18.6]} 19... Bd8 {[%clk 0:02:03.1]} 20.
Ng2 {[%clk 0:02:16.6]} 20... Ne7 {[%clk 0:02:02.9]} 21. h5 {[%clk 0:02:16.6]}
21... Rb8 {[%clk 0:02:01.8]} 22. Bf2 {[%clk 0:02:03.8]} 22... Rf7 {[%clk
0:02:01.6]} 23. Ne3 {[%clk 0:02:01.7]} 23... Nf8 {[%clk 0:02:00.8]} 24. Bg2
{[%clk 0:02:01.2]} 24... b5 {[%clk 0:01:59.5]} 25. axb5 {[%clk 0:02:00]} 25...
axb5 {[%clk 0:02:00.4]} 26. Ra6 {[%clk 0:02:00.2]} 26... b4 {[%clk 0:01:48.3]}
27. Qa4 {[%clk 0:01:59.3]} 27... bxc3 {[%clk 0:01:27.6]} 28. bxc3 {[%clk
0:02:00.2]} 28... Rb2 {[%clk 0:01:28.3]} 29. Ndxc4 {[%clk 0:02:00]} 29... dxc4
{[%clk 0:01:26.5]} 30. Nxc4 {[%clk 0:02:00.9]} 30... Rb8 {[%clk 0:00:59.5]} 31.
Nd6 {[%clk 0:02:00.3]} 31... Qxc3 {[%clk 0:00:59.5]} 32. Qe8 {[%clk 0:01:55.4]}
32... Rf6 {[%clk 0:00:18.7]} 33. exf6 {[%clk 0:01:53.6]} 33... gxf6 {[%clk
0:00:19.6]} 34. Qf7+ {[%clk 0:01:52.4]} 34... Kh8 {[%clk 0:00:20.5]} 35. Qxf6+
{[%clk 0:01:50.5]} 35... Kg8 {[%clk 0:00:21.4]} 36. Qf7+ {[%clk 0:01:50.6]}
36... Kh8 {[%clk 0:00:21.9]} 37. Qxf8+ {[%clk 0:01:50.9]} 1-0

[Event "*** Titled Tuesday Blitz"]
[Site "Chess.com"]
[Date "2021.03.09"]
[Round "7"]
[White "KonstantinB_1983"]
[Black "ChrisTool2"]
[Result "0-1"]
[WhiteElo "2489"]
[BlackElo "2358"]
[TimeControl "180+1"]
[EndTime "11:19:52 PST"]
[Termination "ChrisTool2 won by checkmate"]

1. Nf3 {[%clk 0:03:00.9]} 1... d5 {[%clk 0:02:59]} 2. c3 {[%clk 0:02:59.7]} 2...
Nf6 {[%clk 0:02:57.1]} 3. d3 {[%clk 0:03:00.1]} 3... Nc6 {[%clk 0:02:53.3]} 4.
Nbd2 {[%clk 0:03:01]} 4... e5 {[%clk 0:02:52.3]} 5. e4 {[%clk 0:03:01.9]} 5...
Bc5 {[%clk 0:02:50.9]} 6. Be2 {[%clk 0:03:02.8]} 6... O-O {[%clk 0:02:50.2]} 7.
O-O {[%clk 0:03:02.9]} 7... h6 {[%clk 0:02:48.5]} 8. b4 {[%clk 0:03:02.6]} 8...
Bd6 {[%clk 0:02:43.8]} 9. b5 {[%clk 0:03:02.1]} 9... Ne7 {[%clk 0:02:41.6]} 10.
Qc2 {[%clk 0:02:59.3]} 10... b6 {[%clk 0:02:29.7]} 11. a4 {[%clk 0:02:56.6]}
11... Ng6 {[%clk 0:02:23.2]} 12. Re1 {[%clk 0:02:55.2]} 12... Re8 {[%clk
0:02:19.4]} 13. Bb2 {[%clk 0:02:54]} 13... Nf4 {[%clk 0:02:16.2]} 14. Bf1 {[%clk
0:02:52.8]} 14... dxe4 {[%clk 0:02:13.3]} 15. dxe4 {[%clk 0:02:45.4]} 15... Bb7
{[%clk 0:01:49.8]} 16. Nc4 {[%clk 0:02:35.1]} 16... Qe7 {[%clk 0:01:39.9]} 17.
Nxd6 {[%clk 0:02:32.5]} 17... Qxd6 {[%clk 0:01:32.9]} 18. Bc4 {[%clk 0:02:18.8]}
18... Rad8 {[%clk 0:01:28.8]} 19. Qb3 {[%clk 0:02:13.1]} 19... Qd7 {[%clk
0:01:09.1]} 20. Rad1 {[%clk 0:02:05.8]} 20... Qg4 {[%clk 0:01:07.3]} 21. Bxf7+
{[%clk 0:01:28.5]} 21... Kh8 {[%clk 0:01:06.5]} 22. g3 {[%clk 0:01:25.1]} 22...
Qxf3 {[%clk 0:00:58.5]} 23. gxf4 {[%clk 0:01:23.7]} 23... Nxe4 {[%clk
0:00:52.2]} 24. Qc2 {[%clk 0:01:14.1]} 24... Nxf2 {[%clk 0:00:32.4]} 25. Qg6
{[%clk 0:01:06.5]} 25... Nh3# {[%clk 0:00:30.3]} 0-1

[Event "*** Titled Tuesday Blitz"]
[Site "Chess.com"]
[Date "2021.03.09"]
[Round "7"]
[White "Atco84"]
[Black "FredyMatsuura"]
[Result "1-0"]
[WhiteElo "2439"]
[BlackElo "2209"]
[TimeControl "180+1"]
[EndTime "11:19:52 PST"]
[Termination "Atco84 won by resignation"]

1. b3 {[%clk 0:03:00.9]} 1... e5 {[%clk 0:02:59.2]} 2. Bb2 {[%clk 0:03:01.8]}
2... Nc6 {[%clk 0:02:59]} 3. Nf3 {[%clk 0:03:01.7]} 3... e4 {[%clk 0:02:55.7]}
4. Nd4 {[%clk 0:03:01.8]} 4... Qf6 {[%clk 0:02:48]} 5. e3 {[%clk 0:03:00.1]}
5... Bc5 {[%clk 0:02:38.2]} 6. Nc3 {[%clk 0:02:50.3]} 6... Bxd4 {[%clk
0:02:17.5]} 7. exd4 {[%clk 0:02:41.1]} 7... Nxd4 {[%clk 0:02:12.5]} 8. Nd5
{[%clk 0:02:33.1]} 8... Qe5 {[%clk 0:01:33.6]} 9. Bxd4 {[%clk 0:02:30.8]} 9...
Qxd4 {[%clk 0:01:31.7]} 10. Nxc7+ {[%clk 0:02:30.7]} 10... Kd8 {[%clk
0:01:32.2]} 11. Nxa8 {[%clk 0:02:30.7]} 11... b6 {[%clk 0:01:26.8]} 12. c3
{[%clk 0:02:18.7]} 12... Qe5 {[%clk 0:01:19.1]} 13. Qe2 {[%clk 0:02:06.7]} 13...
Bb7 {[%clk 0:01:16.4]} 14. Nxb6 {[%clk 0:02:05]} 14... axb6 {[%clk 0:01:16.9]}
15. Qb5 {[%clk 0:02:01.1]} 15... Qf6 {[%clk 0:01:07.9]} 16. a4 {[%clk
0:01:49.4]} 16... Kc8 {[%clk 0:00:54.4]} 17. a5 {[%clk 0:01:48.5]} 17... bxa5
{[%clk 0:00:54.6]} 18. Qc5+ {[%clk 0:01:42.7]} 18... Kb8 {[%clk 0:00:45.3]} 19.
Qf8+ {[%clk 0:01:37.6]} 19... Kc7 {[%clk 0:00:44.7]} 20. Rxa5 {[%clk 0:01:37.6]}
20... g6 {[%clk 0:00:32.3]} 21. Qc5+ {[%clk 0:01:35.2]} 21... Kb8 {[%clk
0:00:20.1]} 22. Qa7+ {[%clk 0:01:33]} 22... Kc7 {[%clk 0:00:19.9]} 23. Ba6
{[%clk 0:01:33.4]} 23... Qb6 {[%clk 0:00:17.5]} 24. Bxb7 {[%clk 0:01:31.2]}
24... Qxa7 {[%clk 0:00:14.1]} 25. Rxa7 {[%clk 0:01:31.3]} 25... Kb6 {[%clk
0:00:14]} 26. Ra8 {[%clk 0:01:32.2]} 26... Kxb7 {[%clk 0:00:14.2]} 27. Rf8
{[%clk 0:01:32.6]} 27... d5 {[%clk 0:00:14]} 1-0

[Event "*** Titled Tuesday Blitz"]
[Site "Chess.com"]
[Date "2021.03.09"]
[Round "7"]
[White "BanjoKazooieN64"]
[Black "HrvojeZagreb"]
[Result "1-0"]
[WhiteElo "2398"]
[BlackElo "2264"]
[TimeControl "180+1"]
[EndTime "11:19:54 PST"]
[Termination "BanjoKazooieN64 won by resignation"]

1. e4 {[%clk 0:03:00.9]} 1... e6 {[%clk 0:03:00.1]} 2. d4 {[%clk 0:03:00.1]}
2... d5 {[%clk 0:03:00.7]} 3. Nc3 {[%clk 0:03:00.3]} 3... dxe4 {[%clk
0:03:00.9]} 4. Nxe4 {[%clk 0:03:00.2]} 4... Nd7 {[%clk 0:03:01.5]} 5. Nf3 {[%clk
0:03:00.1]} 5... Ngf6 {[%clk 0:03:02]} 6. Nxf6+ {[%clk 0:03:00.3]} 6... Nxf6
{[%clk 0:03:02.9]} 7. c3 {[%clk 0:03:00.8]} 7... Bd6 {[%clk 0:02:57]} 8. Bd3
{[%clk 0:02:59.2]} 8... b6 {[%clk 0:02:55.6]} 9. O-O {[%clk 0:02:58.3]} 9... Bb7
{[%clk 0:02:55.4]} 10. Bg5 {[%clk 0:02:58.5]} 10... h6 {[%clk 0:02:50.5]} 11.
Bh4 {[%clk 0:02:57.9]} 11... a6 {[%clk 0:02:37]} 12. Qe2 {[%clk 0:02:54.8]}
12... c5 {[%clk 0:02:33.8]} 13. dxc5 {[%clk 0:02:52.9]} 13... Bxc5 {[%clk
0:02:34.7]} 14. Rad1 {[%clk 0:02:52.6]} 14... Qc7 {[%clk 0:02:32.2]} 15. Bxf6
{[%clk 0:02:46.9]} 15... gxf6 {[%clk 0:02:33.1]} 16. Be4 {[%clk 0:02:47.3]}
16... O-O {[%clk 0:02:11.1]} 17. b4 {[%clk 0:02:45.5]} 17... Be7 {[%clk
0:02:07.6]} 18. Nh4 {[%clk 0:02:43.1]} 18... f5 {[%clk 0:02:03]} 19. Bxb7 {[%clk
0:02:40.5]} 19... Qxb7 {[%clk 0:02:03.1]} 20. Qh5 {[%clk 0:02:40.6]} 20... Kg7
{[%clk 0:01:52.2]} 21. Rd3 {[%clk 0:02:38.2]} 21... f4 {[%clk 0:01:41.3]} 22.
Qg4+ {[%clk 0:02:32]} 22... Bg5 {[%clk 0:01:39.8]} 23. Nf3 {[%clk 0:02:29.3]}
23... f5 {[%clk 0:01:37.8]} 24. Qh5 {[%clk 0:02:25.6]} 24... Qf7 {[%clk
0:01:34.1]} 25. Qxf7+ {[%clk 0:02:25.7]} 25... Rxf7 {[%clk 0:01:31]} 26. Re1
{[%clk 0:02:25.8]} 26... a5 {[%clk 0:01:13.5]} 27. b5 {[%clk 0:02:22.4]} 27...
Rc8 {[%clk 0:01:09.3]} 28. Rxe6 {[%clk 0:02:20.1]} 28... Rfc7 {[%clk 0:01:09]}
29. h4 {[%clk 0:02:17.2]} 29... Bf6 {[%clk 0:01:06.6]} 30. Rdd6 {[%clk
0:02:12.6]} 30... Bxc3 {[%clk 0:01:04.7]} 31. Rg6+ {[%clk 0:02:11.9]} 31... Kf7
{[%clk 0:01:00.1]} 32. Rxh6 {[%clk 0:02:11.9]} 32... Bb4 {[%clk 0:00:44.7]} 33.
Rxb6 {[%clk 0:02:08.4]} 33... Rc1+ {[%clk 0:00:42.5]} 34. Kh2 {[%clk 0:02:08.1]}
34... Rf1 {[%clk 0:00:38.2]} 35. Rbf6+ {[%clk 0:02:02.3]} 35... Ke7 {[%clk
0:00:32.6]} 36. Re6+ {[%clk 0:02:02.1]} 36... Kf8 {[%clk 0:00:27.2]} 37. Rh8+
{[%clk 0:01:58.5]} 37... Kf7 {[%clk 0:00:25]} 38. Ng5+ {[%clk 0:01:58.7]} 38...
Kg7 {[%clk 0:00:22.7]} 39. Rxc8 {[%clk 0:01:58.7]} 39... Rxf2 {[%clk 0:00:22.3]}
40. Rc7+ {[%clk 0:01:57.6]} 40... Kf8 {[%clk 0:00:20.8]} 41. Rf7+ {[%clk
0:01:57.6]} 1-0

[Event "*** Titled Tuesday Blitz"]
[Site "Chess.com"]
[Date "2021.03.09"]
[Round "7"]
[White "Leonid_Starozhilov"]
[Black "dropstoneDP"]
[Result "0-1"]
[WhiteElo "2693"]
[BlackElo "2898"]
[TimeControl "180+1"]
[EndTime "11:20:12 PST"]
[Termination "dropstoneDP won by resignation"]

1. e4 {[%clk 0:03:00.9]} 1... e5 {[%clk 0:02:56.7]} 2. Nf3 {[%clk 0:03:00.6]}
2... Nc6 {[%clk 0:02:57.1]} 3. Bc4 {[%clk 0:03:00.2]} 3... Bc5 {[%clk
0:02:56.7]} 4. d3 {[%clk 0:03:00.6]} 4... Nf6 {[%clk 0:02:54]} 5. Nc3 {[%clk
0:03:00.8]} 5... d6 {[%clk 0:02:51.4]} 6. h3 {[%clk 0:03:00.2]} 6... Na5 {[%clk
0:02:50.8]} 7. Bb3 {[%clk 0:02:58.8]} 7... a6 {[%clk 0:02:49.1]} 8. Be3 {[%clk
0:02:57.6]} 8... Bxe3 {[%clk 0:02:47.8]} 9. fxe3 {[%clk 0:02:58.5]} 9... O-O
{[%clk 0:02:47.6]} 10. O-O {[%clk 0:02:58.2]} 10... Nxb3 {[%clk 0:02:45.4]} 11.
axb3 {[%clk 0:02:58.3]} 11... Be6 {[%clk 0:02:45.4]} 12. Qd2 {[%clk 0:02:52.7]}
12... Nd7 {[%clk 0:02:43.3]} 13. Rf2 {[%clk 0:02:49.4]} 13... Qe7 {[%clk
0:02:32.8]} 14. Raf1 {[%clk 0:02:48.4]} 14... c6 {[%clk 0:02:30.8]} 15. Ne2
{[%clk 0:02:47.3]} 15... a5 {[%clk 0:02:30.6]} 16. Ng3 {[%clk 0:02:46.5]} 16...
g6 {[%clk 0:02:28]} 17. Nh2 {[%clk 0:02:44.3]} 17... Qg5 {[%clk 0:02:23.7]} 18.
Nf5 {[%clk 0:02:31.2]} 18... gxf5 {[%clk 0:01:58.1]} 19. exf5 {[%clk 0:02:32.1]}
19... Bd5 {[%clk 0:01:58.4]} 20. e4 {[%clk 0:02:31.9]} 20... Qxd2 {[%clk
0:01:57.6]} 21. Rxd2 {[%clk 0:02:32.8]} 21... Nf6 {[%clk 0:01:54]} 22. Re2
{[%clk 0:02:16.6]} 22... a4 {[%clk 0:01:51.3]} 23. exd5 {[%clk 0:02:09.2]} 23...
cxd5 {[%clk 0:01:52.2]} 24. bxa4 {[%clk 0:02:02.4]} 24... Rxa4 {[%clk
0:01:53.1]} 25. g4 {[%clk 0:02:02.6]} 25... h6 {[%clk 0:01:50.3]} 26. h4 {[%clk
0:02:01]} 26... Nxg4 {[%clk 0:01:37.6]} 27. Rg2 {[%clk 0:01:43.1]} 27... h5
{[%clk 0:01:36.3]} 28. b3 {[%clk 0:01:43.5]} 28... Rb4 {[%clk 0:01:32.7]} 29. c3
{[%clk 0:01:42]} 29... Rxb3 {[%clk 0:01:31.7]} 30. Nxg4 {[%clk 0:01:42.6]} 30...
hxg4 {[%clk 0:01:32.6]} 31. Rxg4+ {[%clk 0:01:43.2]} 31... Kh7 {[%clk 0:01:33]}
32. Kh2 {[%clk 0:01:21.1]} 32... Rg8 {[%clk 0:01:30.8]} 33. Rxg8 {[%clk
0:01:20.4]} 33... Kxg8 {[%clk 0:01:31.7]} 34. Rg1+ {[%clk 0:01:21.1]} 34... Kh8
{[%clk 0:01:26.4]} 35. f6 {[%clk 0:01:11.3]} 35... Rxc3 {[%clk 0:01:25.6]} 36.
Rg7 {[%clk 0:01:12]} 36... Rc7 {[%clk 0:01:24.7]} 37. h5 {[%clk 0:01:09.6]}
37... b5 {[%clk 0:01:23.6]} 38. Kg3 {[%clk 0:00:58.9]} 38... b4 {[%clk
0:01:23.1]} 39. Kg4 {[%clk 0:00:59.5]} 39... b3 {[%clk 0:01:11.3]} 40. Kg5
{[%clk 0:00:58]} 40... b2 {[%clk 0:01:11.7]} 41. Kh6 {[%clk 0:00:58.4]} 41...
b1=Q {[%clk 0:01:11.5]} 42. Rh7+ {[%clk 0:00:57.1]} 42... Kg8 {[%clk 0:01:11.7]}
43. Rg7+ {[%clk 0:00:57.6]} 43... Kf8 {[%clk 0:01:12.1]} 0-1